bitfinex/quotes_BTCUSD_20241013
["timestamp","ask_amount","ask_price","bid_price","bid_amount"]
[1728805192905,0.00097032,62896.0,62895.0,0.34196246]
[1728805195243,0.04059847,62899.0,62898.0,0.158987]
[1728805195506,0.04059847,62899.0,62898.0,0.32021101]
[1728805195728,0.04059847,62899.0,62898.0,0.33713549]
[1728805197339,0.04259847,62899.0,62898.0,0.33713549]
[1728805203138,0.04259847,62899.0,62898.0,0.34631361]
[1728805203354,0.04423847,62899.0,62898.0,0.34631361]
[1728805207189,0.02971481,62899.0,62898.0,0.45848673]
[1728805207897,0.00364,62899.0,62898.0,0.45848673]
[1728805209127,0.00364,62899.0,62898.0,0.45848668]
[1728805212866,0.00364,62899.0,62898.0,0.4465405]
[1728805213135,0.00364,62899.0,62898.0,0.45350783]
[1728805213376,0.00264,62899.0,62898.0,0.45848608]
[1728805213616,0.00164,62899.0,62898.0,0.45948608]
[1728805213852,0.00164,62899.0,62898.0,0.46048608]
[1728805215750,0.00164,62899.0,62898.0,0.46130608]
[1728805216466,0.00164,62899.0,62898.0,0.44438225]
[1728805216716,0.00164,62899.0,62898.0,0.46130579]
[1728805231464,0.00164,62899.0,62898.0,0.46130666]
[1728805234946,0.00164,62899.0,62898.0,0.45632841]
[1728805235182,0.00164,62899.0,62898.0,0.46130699]
[1728805238804,0.00164,62899.0,62898.0,0.45632872]
[1728805239037,0.00164,62899.0,62898.0,0.46130699]
[1728805239272,0.00164,62899.0,62898.0,0.46130733]
[1728805239785,0.00164,62899.0,62898.0,0.3371874]
[1728805240005,0.00164,62899.0,62898.0,0.3491342]
[1728805242753,0.00164,62899.0,62898.0,0.3371874]
[1728805242974,0.00164,62899.0,62898.0,0.34913418]
[1728805246287,0.00164,62899.0,62898.0,0.34415591]
[1728805246521,0.00164,62899.0,62898.0,0.3491342]
[1728805249412,0.00164,62899.0,62898.0,0.34913427]
[1728805253914,0.00164,62899.0,62898.0,0.34913443]
[1728805260921,0.00164,62899.0,62898.0,0.3371874]
[1728805261153,0.04925971,62899.0,62898.0,0.34913508]
[1728805267311,0.00164,62899.0,62898.0,0.33220913]
[1728805267541,0.00164,62899.0,62898.0,0.3491347]
[1728805269074,0.04925164,62899.0,62898.0,0.3491347]
[1728805270835,0.00164,62899.0,62898.0,0.3491347]
[1728805271060,0.00164,62899.0,62898.0,0.01974549]
[1728805271325,0.30583664,62899.0,62898.0,0.01974549]
[1728805272194,0.70583664,62899.0,62898.0,0.00779828]
[1728805273275,0.658225,62899.0,62898.0,0.00779828]
[1728805273925,0.72964246,62899.0,62898.0,0.00779828]
[1728805274570,0.658225,62899.0,62898.0,0.00779828]
[1728805276985,0.658225,62899.0,62898.0,0.00679838]
[1728805277399,0.658225,62899.0,62898.0,0.00579838]
[1728805277607,0.660225,62899.0,62898.0,0.00579838]
[1728805278032,0.659225,62899.0,62898.0,0.00579838]
[1728805278305,0.93016752,62899.0,62898.0,0.00082]
[1728805278508,0.93113012,62899.0,62898.0,0.00579861]
[1728805279847,1.03214654,62899.0,62898.0,0.20579861]
[1728805280302,1.03214654,62899.0,62898.0,0.20082]
[1728805280508,1.03114654,62899.0,62898.0,0.20082]
[1728805280957,1.03514654,62899.0,62898.0,0.20082]
[1728805281178,0.91614226,62899.0,62898.0,0.20082]
[1728805281403,1.03006584,62899.0,62898.0,0.20082]
[1728805281848,0.91314226,62899.0,62898.0,0.20082]
[1728805282285,0.91514226,62899.0,62898.0,0.20082]
[1728805282493,1.03404625,62899.0,62898.0,0.20082]
[1728805282756,0.91514226,62899.0,62898.0,0.20082]
[1728805282990,0.94004605,62899.0,62898.0,0.20082]
[1728805283194,1.0825584,62899.0,62898.0,0.20082]
[1728805283578,0.93788453,62899.0,62898.0,0.20082]
[1728805283579,0.93588453,62899.0,62898.0,0.20082]
[1728805283786,0.94388453,62899.0,62898.0,0.20082]
[1728805284038,0.93988453,62899.0,62898.0,0.20082]
[1728805284201,0.93588453,62899.0,62898.0,0.20082]
[1728805284407,0.94288453,62899.0,62898.0,0.20182]
[1728805284699,0.94388453,62899.0,62898.0,0.20182]
[1728805285073,0.95188453,62899.0,62898.0,0.20282]
[1728805285466,0.95188453,62899.0,62898.0,0.20182]
[1728805286117,0.94388453,62899.0,62898.0,0.20082]
[1728805286597,0.95288453,62899.0,62898.0,0.20182]
[1728805286812,0.96188453,62899.0,62898.0,0.20282]
[1728805287035,0.93588453,62899.0,62898.0,0.20082]
[1728805287267,0.95588453,62899.0,62898.0,0.20282]
[1728805287704,0.78032879,62899.0,62898.0,0.20282]
[1728805287926,2.21969191,62899.0,62898.0,0.20282]
[1728805288611,2.19478812,62899.0,62898.0,0.20282]
[1728805291603,2.21969266,62899.0,62898.0,0.20282]
[1728805292825,2.38091667,62899.0,62898.0,0.20282]
[1728805293060,2.38591667,62899.0,62898.0,0.20282]
[1728805293289,2.528434,62899.0,62898.0,0.20282]
[1728805293760,2.63121935,62899.0,62898.0,0.20282]
[1728805294437,2.52829108,62899.0,62898.0,0.20282]
[1728805294657,2.52811067,62899.0,62898.0,0.20282]
[1728805294892,2.5977517,62899.0,62898.0,0.20282]
[1728805296463,2.45537933,62899.0,62898.0,0.20282]
[1728805296702,2.73292482,62899.0,62898.0,0.20282]
[1728805296918,2.6207517,62899.0,62898.0,0.20282]
[1728805297364,2.72355162,62899.0,62898.0,0.20282]
[1728805297602,2.72355162,62899.0,62898.0,0.20082]
[1728805297603,2.95802801,62899.0,62898.0,0.20082]
[1728805298066,2.92972474,62899.0,62898.0,0.20182]
[1728805298291,2.92972474,62899.0,62898.0,0.20082]
[1728805298529,2.8179301,62899.0,62898.0,0.20182]
[1728805298843,2.8319301,62899.0,62898.0,0.20182]
[1728805299298,2.8179301,62899.0,62898.0,0.20182]
[1728805299739,2.8039301,62899.0,62898.0,0.20082]
[1728805300195,2.8179301,62899.0,62898.0,0.20082]
[1728805300420,2.64764791,62899.0,62898.0,0.20082]
[1728805300640,2.67564791,62899.0,62898.0,0.20082]
[1728805301082,2.66164791,62899.0,62898.0,0.20082]
[1728805301314,2.67564791,62899.0,62898.0,0.20082]
[1728805301748,2.70055476,62899.0,62898.0,0.20082]
[1728805302006,2.68638898,62899.0,62898.0,0.20082]
[1728805302232,2.70038898,62899.0,62898.0,0.20082]
[1728805302908,2.70038898,62899.0,62898.0,0.18356202]
[1728805306662,2.70034099,62899.0,62898.0,0.18356202]
[1728805308587,2.67543414,62899.0,62898.0,0.18356202]
[1728805308992,2.67343414,62899.0,62898.0,0.18356202]
[1728805310435,2.67343414,62899.0,62898.0,0.18438202]
[1728805311504,2.67344345,62899.0,62898.0,0.18438202]
[1728805311741,2.69835138,62899.0,62898.0,0.18438202]
[1728805312841,2.84055758,62899.0,62898.0,0.18438202]
[1728805313051,2.84255758,62899.0,62898.0,0.18438202]
[1728805315438,3.08761627,62899.0,62898.0,0.18438202]
[1728805316282,3.08772577,62899.0,62898.0,0.18438202]
[1728805316490,2.94547004,62899.0,62898.0,0.18438202]
[1728805318659,2.92056211,62899.0,62898.0,0.18438202]
[1728805320842,2.92083905,62899.0,62898.0,0.18438202]
[1728805321531,2.94574701,62899.0,62898.0,0.18438202]
[1728805323993,2.94600583,62899.0,62898.0,0.18438202]
[1728805324743,2.94400583,62899.0,62898.0,0.18438202]
[1728805325428,3.10424762,62899.0,62898.0,0.18438202]
[1728805325890,3.10624762,62899.0,62898.0,0.18438202]
[1728805326129,0.005,62896.0,62895.0,0.000819]
[1728805326364,0.84782671,62896.0,62895.0,0.000819]
[1728805326596,2.27319642,62896.0,62895.0,0.000819]
[1728805327301,2.67319642,62896.0,62895.0,0.000819]
[1728805327538,2.68719642,62896.0,62895.0,0.000819]
[1728805327762,2.70119642,62896.0,62895.0,0.000819]
[1728805331741,2.7261049,62896.0,62895.0,0.000819]
[1728805332422,2.86860349,62896.0,62895.0,0.000819]
[1728805332910,2.64425725,62896.0,62895.0,0.000819]
[1728805333161,2.61393178,62896.0,62895.0,0.000819]
[1728805333853,2.6141866,62896.0,62895.0,0.000819]
[1728805336214,3.02045541,62896.0,62895.0,0.000819]
[1728805337564,2.85998064,62896.0,62895.0,0.000819]
[1728805338629,2.83507216,62896.0,62895.0,0.000819]
[1728805341596,2.85998011,62896.0,62895.0,0.000819]
[1728805343326,2.43866679,62896.0,62895.0,0.000819]
[1728805343567,2.8604641,62896.0,62895.0,0.000819]
[1728805347844,2.86051633,62896.0,62895.0,0.000819]
[1728805348512,2.83560838,62896.0,62895.0,0.000819]
[1728805351474,2.9477815,62896.0,62895.0,0.000819]
[1728805351722,2.97268982,62896.0,62895.0,0.000819]
[1728805353946,3.06298982,62896.0,62895.0,0.000819]
[1728805358529,3.0380815,62896.0,62895.0,0.000819]
[1728805361555,3.06299022,62896.0,62895.0,0.000819]
[1728805362680,3.06316962,62896.0,62895.0,0.000819]
[1728805367588,3.0382609,62896.0,62895.0,0.000819]
[1728805370544,3.06316983,62896.0,62895.0,0.000819]
[1728805372311,3.06315716,62896.0,62895.0,0.000819]
[1728805378687,3.03824823,62896.0,62895.0,0.000819]
[1728805380882,3.03822545,62896.0,62895.0,0.000819]
[1728805381524,3.06313429,62896.0,62895.0,0.000819]
[1728805385068,3.06311933,62896.0,62895.0,0.000819]
[1728805387658,3.03821049,62896.0,62895.0,0.000819]
[1728805389677,2.92603737,62896.0,62895.0,0.000819]
[1728805389932,2.92603138,62896.0,62895.0,0.000819]
[1728805390603,2.95094017,62896.0,62895.0,0.000819]
[1728805391344,3.06311329,62896.0,62895.0,0.000819]
[1728805391564,2.74846705,62896.0,62895.0,0.000819]
[1728805391793,2.86064017,62896.0,62895.0,0.000819]
[1728805393384,2.97281329,62896.0,62895.0,0.000819]
[1728805397745,2.97284407,62896.0,62895.0,0.000819]
[1728805398656,2.94793528,62896.0,62895.0,0.000819]
[1728805399352,2.83577191,62896.0,62895.0,0.000819]
[1728805401623,2.86068051,62896.0,62895.0,0.000819]
[1728805407680,2.83577191,62896.0,62895.0,0.000819]
[1728805410368,2.6744022,62896.0,62895.0,0.000819]
[1728805410606,2.69931084,62896.0,62895.0,0.000819]
[1728805413802,2.69937535,62896.0,62895.0,0.000819]
[1728805415120,2.27729777,62896.0,62895.0,0.000819]
[1728805415752,2.69937822,62896.0,62895.0,0.000819]
[1728805415966,2.72890139,62896.0,62895.0,0.000819]
[1728805417939,2.55303454,62896.0,62895.0,0.000819]
[1728805418140,2.30682094,62896.0,62895.0,0.000819]
[1728805418571,2.2819123,62896.0,62895.0,0.000819]
[1728805421698,2.3068209,62896.0,62895.0,0.000819]
[1728805427532,2.2819123,62896.0,62895.0,0.000819]
[1728805428633,2.70400067,62896.0,62895.0,0.000819]
[1728805430880,2.72890944,62896.0,62895.0,0.000819]
[1728805438552,2.70400067,62896.0,62895.0,0.000819]
[1728805441075,2.70409657,62896.0,62895.0,0.000819]
[1728805441512,2.72900532,62896.0,62895.0,0.000819]
[1728805445360,2.72897676,62896.0,62895.0,0.000819]
[1728805447578,2.70406801,62896.0,62895.0,0.000819]
[1728805450644,2.7289769,62896.0,62895.0,0.000819]
[1728805455075,2.72898896,62896.0,62895.0,0.000819]
[1728805458472,2.70408007,62896.0,62895.0,0.000819]
[1728805461600,2.72898879,62896.0,62895.0,0.000819]
[1728805463617,2.5872925,62896.0,62895.0,0.000819]
[1728805463846,2.67646562,62896.0,62895.0,0.000819]
[1728805468495,2.6515569,62896.0,62895.0,0.000819]
[1728805471608,2.67646518,62896.0,62895.0,0.000819]
[1728805474053,2.25429741,62896.0,62895.0,0.000819]
[1728805474280,2.83780968,62896.0,62895.0,0.000819]
[1728805474700,2.72563656,62896.0,62895.0,0.000819]
[1728805474922,2.83780968,62896.0,62895.0,0.000819]
[1728805475803,2.67643997,62896.0,62895.0,0.000819]
[1728805478561,2.65153169,62896.0,62895.0,0.000819]
[1728805478773,2.65150291,62896.0,62895.0,0.000819]
[1728805478989,2.65150303,62896.0,62895.0,0.000819]
[1728805481662,2.67641147,62896.0,62895.0,0.000819]
[1728805482128,2.83778118,62896.0,62895.0,0.000819]
[1728805483443,2.67641147,62896.0,62895.0,0.000819]
[1728805483855,2.67641075,62896.0,62895.0,0.000819]
[1728805486468,2.67641119,62896.0,62895.0,0.000819]
[1728805488760,2.65150455,62896.0,62895.0,0.000819]
[1728805491589,2.67641303,62896.0,62895.0,0.000819]
[1728805491793,2.83778274,62896.0,62895.0,0.000819]
[1728805493359,2.8377968,62896.0,62895.0,0.000819]
[1728805498570,2.81288832,62896.0,62895.0,0.000819]
[1728805501642,2.83779698,62896.0,62895.0,0.000819]
[1728805505247,2.67642727,62896.0,62895.0,0.000819]
[1728805506503,2.67645281,62896.0,62895.0,0.000819]
[1728805508699,2.65154415,62896.0,62895.0,0.000819]
[1728805511655,2.67645285,62896.0,62895.0,0.000819]
[1728805518604,2.65154415,62896.0,62895.0,0.000819]
[1728805520111,2.81291386,62896.0,62895.0,0.000819]
[1728805521659,2.83782255,62896.0,62895.0,0.000819]
[1728805522090,2.67645284,62896.0,62895.0,0.000819]
[1728805528714,2.65154415,62896.0,62895.0,0.000819]
[1728805530351,2.65139838,62896.0,62895.0,0.000819]
[1728805530450,3.02581468,62896.0,62895.0,0.000819]
[1728805531623,3.05072411,62896.0,62895.0,0.000819]
[1728805531836,2.98328093,62896.0,62895.0,0.000819]
[1728805532048,3.14465064,62896.0,62895.0,0.000819]
[1728805534756,3.14462648,62896.0,62895.0,0.000819]
[1728805535852,3.14662648,62896.0,62895.0,0.000819]
[1728805538544,3.12171705,62896.0,62895.0,0.000819]
[1728805538758,3.12168537,62896.0,62895.0,0.000819]
[1728805539651,3.12168245,62896.0,62895.0,0.000819]
[1728805541454,3.11968245,62896.0,62895.0,0.000819]
[1728805541674,3.14458462,62896.0,62895.0,0.000819]
[1728805542115,3.06958462,62896.0,62895.0,0.000819]
[1728805542748,2.9574115,62896.0,62895.0,0.000819]
[1728805544500,2.96446435,62896.0,62895.0,0.000819]
[1728805546091,3.07663747,62896.0,62895.0,0.000819]
[1728805548563,3.05172794,62896.0,62895.0,0.000819]
[1728805549212,3.05160835,62896.0,62895.0,0.000819]
[1728805551753,3.07651756,62896.0,62895.0,0.000819]
[1728805554506,2.91514785,62896.0,62895.0,0.000819]
[1728805558596,2.8922337,62896.0,62895.0,0.000819]
[1728805559280,2.8902337,62896.0,62895.0,0.000819]
[1728805560631,2.8922337,62896.0,62895.0,0.000819]
[1728805561365,3.04207688,62896.0,62895.0,0.000819]
[1728805561579,0.288997,62894.0,62893.0,0.000819]
[1728805561799,0.73180359,62894.0,62893.0,0.000819]
[1728805562239,1.13180359,62894.0,62893.0,0.000819]
[1728805563171,1.14580359,62894.0,62893.0,0.000819]
[1728805563406,1.15980359,62894.0,62893.0,0.000819]
[1728805563647,1.3071733,62894.0,62893.0,0.000819]
[1728805563878,1.3211733,62894.0,62893.0,0.000819]
[1728805565924,1.3191733,62894.0,62893.0,0.000819]
[1728805566158,1.7895753,62894.0,62893.0,0.000819]
[1728805566418,1.54351954,62894.0,62893.0,0.000819]
[1728805566627,2.80751954,62894.0,62893.0,0.000819]
[1728805566839,3.0535753,62894.0,62893.0,0.000819]
[1728805571615,0.264002,62892.0,62891.0,0.00068832]
[1728805571827,0.78534983,62892.0,62891.0,0.00068832]
[1728805572037,1.29235706,62892.0,62891.0,0.00068832]
[1728805572268,1.69235706,62892.0,62891.0,0.00068832]
[1728805572477,3.20241282,62892.0,62891.0,0.00068832]
[1728805572930,3.25532305,62892.0,62891.0,0.00068832]
[1728805573159,2.75532305,62892.0,62891.0,0.00068832]
[1728805573789,2.74132305,62892.0,62891.0,0.00068832]
[1728805574472,2.75532305,62892.0,62891.0,0.00068832]
[1728805574908,2.74132305,62892.0,62891.0,0.00068832]
[1728805575390,2.75532305,62892.0,62891.0,0.00068832]
[1728805575805,2.72732305,62892.0,62891.0,0.00068832]
[1728805576022,2.72703616,62892.0,62891.0,0.00068832]
[1728805576204,2.75503616,62892.0,62891.0,0.00068832]
[1728805578709,2.73012593,62892.0,62891.0,0.00068832]
[1728805581832,2.75503614,62892.0,62891.0,0.00068832]
[1728805585418,2.75503267,62892.0,62891.0,0.00068832]
[1728805586289,2.74802544,62892.0,62891.0,0.00068832]
[1728805586511,2.75500064,62892.0,62891.0,0.00068832]
[1728805586728,2.74802544,62892.0,62891.0,0.00068832]
[1728805586978,2.75500042,62892.0,62891.0,0.00068832]
[1728805587220,2.74802544,62892.0,62891.0,0.00068832]
[1728805587423,2.75500306,62892.0,62891.0,0.00068832]
[1728805588694,2.73009285,62892.0,62891.0,0.03069632]
[1728805590257,2.73010396,62892.0,62891.0,0.03069632]
[1728805591187,2.90050396,62892.0,62891.0,0.03069632]
[1728805591439,2.90250396,62892.0,62891.0,0.03069632]
[1728805591658,2.92741402,62892.0,62891.0,0.03069632]
[1728805591883,2.92905402,62892.0,62891.0,0.03069632]
[1728805592135,2.91505402,62892.0,62891.0,0.03069632]
[1728805592573,2.92705402,62892.0,62891.0,0.03069632]
[1728805592778,2.89905402,62892.0,62891.0,0.03069632]
[1728805593254,2.91305402,62892.0,62891.0,0.03069632]
[1728805593479,0.29419012,62886.0,62883.0,0.000819]
[1728805593697,0.63105189,62886.0,62883.0,0.000819]
[1728805594802,0.45541413,62886.0,62883.0,0.000819]
[1728805595012,0.63106585,62886.0,62883.0,0.000819]
[1728805595651,0.65906585,62886.0,62883.0,0.000819]
[1728805595880,0.64506585,62886.0,62883.0,0.000819]
[1728805596334,2.30906585,62886.0,62883.0,0.000819]
[1728805596577,2.55497826,62886.0,62883.0,0.000819]
[1728805597504,2.56897826,62886.0,62883.0,0.000819]
[1728805599101,2.56901575,62886.0,62883.0,0.000819]
[1728805599767,2.56903255,62886.0,62883.0,0.000819]
[1728805602997,2.59394361,62886.0,62883.0,0.000819]
[1728805603452,2.75471768,62886.0,62883.0,0.000819]
[1728805605295,2.59405768,62886.0,62883.0,0.000819]
[1728805608521,2.56914662,62886.0,62883.0,0.000819]
[1728805609114,2.56920358,62886.0,62883.0,0.000819]
[1728805612795,2.59411472,62886.0,62883.0,0.000819]
[1728805615878,2.60144501,62886.0,62883.0,0.000819]
[1728805618622,2.57653387,62886.0,62883.0,0.000819]
[1728805621934,2.57646408,62886.0,62883.0,0.000819]
[1728805625870,2.66844338,62886.0,62883.0,0.000819]
[1728805626560,2.15474442,62886.0,62883.0,0.000819]
[1728805626762,2.57645886,62886.0,62883.0,0.000819]
[1728805640693,2.46428574,62886.0,62883.0,0.000819]
[1728805640909,2.57645886,62886.0,62883.0,0.000819]
[1728805642902,2.60137007,62886.0,62883.0,0.000819]
[1728805645361,2.60134679,62886.0,62883.0,0.000819]
[1728805646263,2.60054679,62886.0,62883.0,0.000819]
[1728805648477,2.57563558,62886.0,62883.0,0.000819]
[1728805650534,2.6878087,62886.0,62883.0,0.000819]
[1728805652563,2.95485253,62886.0,62883.0,0.000819]
[1728805652778,2.97976488,62886.0,62883.0,0.000819]
[1728805653620,2.96576488,62886.0,62883.0,0.000819]
[1728805653867,2.91232105,62886.0,62883.0,0.000819]
[1728805654296,2.89832105,62886.0,62883.0,0.000819]
[1728805654524,2.88432105,62886.0,62883.0,0.000819]
[1728805654750,2.89832105,62886.0,62883.0,0.000819]
[1728805654980,2.91232105,62886.0,62883.0,0.000819]
[1728805656102,2.89832105,62886.0,62883.0,0.000819]
[1728805656524,2.91232105,62886.0,62883.0,0.000819]
[1728805656777,2.89832105,62886.0,62883.0,0.000819]
[1728805657422,3.00507127,62886.0,62883.0,0.000819]
[1728805657644,3.01907127,62886.0,62883.0,0.000819]
[1728805658753,2.99415892,62886.0,62883.0,0.000819]
[1728805661680,3.01907174,62886.0,62883.0,0.000819]
[1728805662361,2.91232152,62886.0,62883.0,0.000819]
[1728805664784,2.91396152,62886.0,62883.0,0.000819]
[1728805667944,2.89996152,62886.0,62883.0,0.000819]
[1728805668368,2.91396152,62886.0,62883.0,0.000819]
[1728805668593,2.8750487,62886.0,62883.0,0.000819]
[1728805668819,2.8610487,62886.0,62883.0,0.000819]
[1728805669277,2.8750487,62886.0,62883.0,0.000819]
[1728805669746,2.8610487,62886.0,62883.0,0.000819]
[1728805669979,2.8890487,62886.0,62883.0,0.000819]
[1728805670193,3.05041841,62886.0,62883.0,0.000819]
[1728805670406,0.264022,62884.0,62883.0,0.000819]
[1728805670627,0.62395066,62884.0,62883.0,0.000819]
[1728805670870,0.6313348,62884.0,62883.0,0.000819]
[1728805671080,0.66797585,62884.0,62883.0,0.000819]
[1728805671298,1.06797585,62884.0,62883.0,0.000819]
[1728805671722,1.10688939,62884.0,62883.0,0.000819]
[1728805671940,1.09288939,62884.0,62883.0,0.000819]
[1728805672621,2.35688939,62884.0,62883.0,0.000819]
[1728805672844,2.6959759,62884.0,62883.0,0.000819]
[1728805673286,2.7239759,62884.0,62883.0,0.000819]
[1728805673530,2.72343917,62884.0,62883.0,0.000819]
[1728805675173,2.69543917,62884.0,62883.0,0.000819]
[1728805675818,2.70943917,62884.0,62883.0,0.000819]
[1728805676258,2.69543917,62884.0,62883.0,0.000819]
[1728805676477,2.70943917,62884.0,62883.0,0.000819]
[1728805676928,2.71143917,62884.0,62883.0,0.000819]
[1728805677135,2.72543917,62884.0,62883.0,0.000819]
[1728805677388,2.71143917,62884.0,62883.0,0.000819]
[1728805677599,2.72343917,62884.0,62883.0,0.000819]
[1728805677836,0.664028,62882.0,62881.0,0.00082]
[1728805678040,1.52407926,62882.0,62881.0,0.00082]
[1728805678255,0.007,62881.0,62880.0,0.00082]
[1728805678461,0.007,62881.0,62877.0,0.00082]
[1728805678462,1.550215,62879.0,62877.0,0.00082]
[1728805678710,1.99904684,62879.0,62877.0,0.00082]
[1728805678923,2.41333815,62879.0,62877.0,0.00082]
[1728805679379,2.81333815,62879.0,62877.0,0.00082]
[1728805680069,2.82733815,62879.0,62877.0,0.00082]
[1728805680297,0.005,62877.0,62876.0,0.00057266]
[1728805680521,0.78506843,62877.0,62876.0,0.00057266]
[1728805680743,0.79237401,62877.0,62876.0,0.00057266]
[1728805681590,1.2312909,62877.0,62876.0,0.00057266]
[1728805681810,1.06992119,62877.0,62876.0,0.00057266]
[1728805682024,1.19609431,62877.0,62876.0,0.00057266]
[1728805682240,2.95927431,62877.0,62876.0,0.00057266]
[1728805682468,3.2048829,62877.0,62876.0,0.00057266]
[1728805688590,3.17996601,62877.0,62876.0,0.00057266]
[1728805688802,3.34133572,62877.0,62876.0,0.00057266]
[1728805690362,0.159063,62868.0,62867.0,0.0928]
[1728805690585,1.69564013,62868.0,62867.0,0.0928]
[1728805690809,1.87809133,62868.0,62867.0,0.0928]
[1728805691249,2.27809024,62868.0,62867.0,0.0928]
[1728805691711,2.28709024,62868.0,62867.0,0.0928]
[1728805691930,2.29609024,62868.0,62867.0,0.0928]
[1728805692864,2.79609024,62868.0,62867.0,0.0928]
[1728805693085,2.32100738,62868.0,62867.0,0.0928]
[1728805695773,2.32100332,62868.0,62867.0,0.0928]
[1728805698591,2.29608618,62868.0,62867.0,0.0928]
[1728805699553,2.18391306,62868.0,62867.0,0.0928]
[1728805700428,2.18394392,62868.0,62867.0,0.0928]
[1728805702152,2.18395032,62868.0,62867.0,0.0928]
[1728805702355,2.18395032,62868.0,62867.0,0.09362]
[1728805702787,2.20886728,62868.0,62867.0,0.09362]
[1728805705063,2.20888192,62868.0,62867.0,0.09362]
[1728805708698,2.18396496,62868.0,62867.0,0.09362]
[1728805711610,2.20888199,62868.0,62867.0,0.09362]
[1728805712041,2.20888199,62868.0,62867.0,0.00082]
[1728805716405,2.35131602,62868.0,62867.0,0.00082]
[1728805718623,2.32639899,62868.0,62867.0,0.00082]
[1728805719336,2.32676506,62868.0,62867.0,0.00082]
[1728805719767,2.57243926,62868.0,62867.0,0.00082]
[1728805719993,2.32676506,62868.0,62867.0,0.00082]
[1728805720438,2.57246248,62868.0,62867.0,0.00082]
[1728805720870,2.42986433,62868.0,62867.0,0.00082]
[1728805721775,2.45478136,62868.0,62867.0,0.00082]
[1728805724015,2.455009,62868.0,62867.0,0.00082]
[1728805728591,2.43009197,62868.0,62867.0,0.00082]
[1728805731667,2.45500901,62868.0,62867.0,0.00082]
[1728805733479,2.4550174,62868.0,62867.0,0.00082]
[1728805738252,2.45503573,62868.0,62867.0,0.00082]
[1728805738675,2.43011869,62868.0,62867.0,0.00082]
[1728805741553,1.16698105,62868.0,62867.0,0.00082]
[1728805741801,0.94604862,62868.0,62867.0,0.00082]
[1728805747525,0.93704862,62868.0,62867.0,0.00082]
[1728805747947,0.94504862,62868.0,62867.0,0.00082]
[1728805748362,0.93604862,62868.0,62867.0,0.00082]
[1728805748811,0.9111313,62868.0,62867.0,0.00082]
[1728805750155,0.9131313,62868.0,62867.0,0.00082]
[1728805750378,0.9221313,62868.0,62867.0,0.00082]
[1728805755414,0.92208836,62868.0,62867.0,0.00082]
[1728805758442,0.9184319,62868.0,62867.0,0.00082]
[1728805759339,2.1824319,62868.0,62867.0,0.00082]
[1728805759564,2.42822153,62868.0,62867.0,0.00082]
[1728805760226,2.42821565,62868.0,62867.0,0.00082]
[1728805761803,2.45313356,62868.0,62867.0,0.00082]
[1728805764903,2.45313852,62868.0,62867.0,0.00082]
[1728805766173,2.03178579,62868.0,62867.0,0.00082]
[1728805766396,2.4531351,62868.0,62867.0,0.00082]
[1728805768849,2.42821719,62868.0,62867.0,0.00082]
[1728805769483,2.00686788,62868.0,62867.0,0.00082]
[1728805769705,2.42820019,62868.0,62867.0,0.00082]
[1728805771632,2.45311838,62868.0,62867.0,0.00082]
[1728805778803,2.42820019,62868.0,62867.0,0.00082]
[1728805780557,2.42816124,62868.0,62867.0,0.00082]
[1728805781829,2.45307924,62868.0,62867.0,0.00082]
[1728805783563,2.45471924,62868.0,62867.0,0.00082]
[1728805784030,2.56689236,62868.0,62867.0,0.00082]
[1728805784268,2.76179236,62868.0,62867.0,0.00082]
[1728805784482,2.92228205,62868.0,62867.0,0.00082]
[1728805785132,2.76179236,62868.0,62867.0,0.00082]
[1728805787540,2.9222511,62868.0,62867.0,0.00082]
[1728805788259,2.92213314,62868.0,62867.0,0.00082]
[1728805788687,2.89721514,62868.0,62867.0,0.00082]
[1728805789354,2.89717838,62868.0,62867.0,0.00082]
[1728805791833,2.92209682,62868.0,62867.0,0.00082]
[1728805793647,2.76165207,62868.0,62867.0,0.00082]
[1728805793875,2.34049944,62868.0,62867.0,0.00082]
[1728805794152,2.76162152,62868.0,62867.0,0.00082]
[1728805798722,2.73670308,62868.0,62867.0,0.00082]
[1728805799239,2.73667538,62868.0,62867.0,0.00082]
[1728805809347,2.62450226,62868.0,62867.0,0.00082]
[1728805809606,2.73667538,62868.0,62867.0,0.00082]
[1728805811031,2.65947538,62868.0,62867.0,0.00082]
[1728805811732,2.84481101,62868.0,62867.0,0.00082]
[1728805813096,2.8452456,62868.0,62867.0,0.00082]
[1728805815623,2.84530725,62868.0,62867.0,0.00082]
[1728805818702,2.82038853,62868.0,62867.0,0.00082]
[1728805820309,2.8205568,62868.0,62867.0,0.00082]
[1728805821862,2.84547556,62868.0,62867.0,0.00082]
[1728805822984,2.68487534,62868.0,62867.0,0.00082]
[1728805823205,2.84547969,62868.0,62867.0,0.00082]
[1728805824987,2.26329976,62868.0,62867.0,0.00082]
[1728805825249,2.84550864,62868.0,62867.0,0.00082]
[1728805827591,2.68489929,62868.0,62867.0,0.00082]
[1728805828726,2.65998053,62868.0,62867.0,0.00082]
[1728805831787,2.68489929,62868.0,62867.0,0.00082]
[1728805832540,2.45502617,62868.0,62867.0,0.00082]
[1728805832777,2.61569041,62868.0,62867.0,0.00082]
[1728805833228,2.45502617,62868.0,62867.0,0.00082]
[1728805834395,2.45524381,62868.0,62867.0,0.00082]
[1728805838699,2.43032505,62868.0,62867.0,0.00082]
[1728805840105,2.54249817,62868.0,62867.0,0.00082]
[1728805840653,2.54241515,62868.0,62867.0,0.00082]
[1728805841719,2.56733296,62868.0,62867.0,0.00082]
[1728805841940,2.74693296,62868.0,62867.0,0.00082]
[1728805842157,2.90759359,62868.0,62867.0,0.00082]
[1728805842596,2.74693296,62868.0,62867.0,0.00082]
[1728805843943,2.74709212,62868.0,62867.0,0.00082]
[1728805846959,2.66529212,62868.0,62867.0,0.00082]
[1728805848750,2.64037431,62868.0,62867.0,0.00082]
[1728805853752,2.64043206,62868.0,62867.0,0.00082]
[1728805861860,2.66535044,62868.0,62867.0,0.00082]
[1728805864812,2.56755044,62868.0,62867.0,0.00082]
[1728805867624,3.03939327,62868.0,62867.0,0.00082]
[1728805868293,3.03039327,62868.0,62867.0,0.00082]
[1728805868562,3.02039327,62868.0,62867.0,0.00082]
[1728805868783,3.01647489,62868.0,62867.0,0.00082]
[1728805868995,3.00547489,62868.0,62867.0,0.00082]
[1728805869448,3.01947489,62868.0,62867.0,0.00082]
[1728805869684,3.00547489,62868.0,62867.0,0.00082]
[1728805870165,3.00947489,62868.0,62867.0,0.00082]